bitfinex-derivatives/quotes_BTCF0:USTF0_20240903
["timestamp","ask_amount","ask_price","bid_price","bid_amount"]
[1725407410125,0.00126018,57697.0,57696.0,0.331674]
[1725407411620,0.00026018,57697.0,57696.0,0.327674]
[1725407412119,0.00026018,57697.0,57696.0,1.808434]
[1725407413008,0.00026018,57697.0,57696.0,1.807434]
[1725407414615,0.00026018,57697.0,57696.0,1.446634]
[1725407414817,0.00026018,57697.0,57696.0,1.894108]
[1725407415323,0.004,57711.0,57705.0,0.08666]
[1725407415622,0.3608,57724.0,57705.0,0.08666]
[1725407415623,0.0004,57714.0,57710.0,0.6008]
[1725407415921,0.0004,57714.0,57713.0,0.326648]
[1725407416117,0.2404,57714.0,57713.0,0.086648]
[1725407416317,0.3608,57718.0,57717.0,0.086642]
[1725407416318,0.6008,57718.0,57717.0,0.086642]
[1725407416521,0.3608,57718.0,57717.0,0.086642]
[1725407417212,0.24,57718.0,57717.0,0.086642]
[1725407417622,0.24,57718.0,57713.0,0.086648]
[1725407417833,0.24,57714.0,57713.0,0.086648]
[1725407418726,0.005,57714.0,57713.0,0.087648]
[1725407420623,0.005,57714.0,57713.0,0.607448]
[1725407421227,0.005,57714.0,57713.0,0.653548]
[1725407421437,0.005,57714.0,57713.0,1.253548]
[1725407421931,0.005,57714.0,57713.0,0.653548]
[1725407422137,0.005,57714.0,57713.0,0.087648]
[1725407422723,0.005,57714.0,57713.0,0.001]
[1725407422724,0.452447,57714.0,57713.0,0.001]
[1725407423023,0.551847,57714.0,57713.0,0.001]
[1725407423222,1.206994,57714.0,57713.0,0.001]
[1725407424529,0.637194,57714.0,57713.0,0.001]
[1725407424734,0.64083481,57714.0,57713.0,0.001]
[1725407424936,0.69083481,57714.0,57713.0,0.001]
[1725407425334,1.21063481,57714.0,57713.0,0.001]
[1725407425929,0.69083481,57714.0,57713.0,0.001]
[1725407426428,1.81063481,57714.0,57713.0,0.001]
[1725407428038,1.72398781,57714.0,57713.0,0.001]
[1725407428234,1.81063481,57714.0,57713.0,0.001]
[1725407429232,1.72398781,57714.0,57713.0,0.001]
[1725407429440,1.07398781,57714.0,57713.0,0.001]
[1725407429634,0.55418781,57714.0,57713.0,0.001]
[1725407433138,0.57548781,57714.0,57713.0,0.001]
[1725407433338,0.50548781,57714.0,57713.0,0.001]
[1725407433539,0.50548781,57714.0,57713.0,0.087648]
[1725407434037,0.60548781,57714.0,57713.0,0.087648]
[1725407434238,0.50548781,57714.0,57713.0,0.087648]
[1725407435439,0.36944081,57714.0,57713.0,0.087648]
[1725407436935,0.45608781,57714.0,57713.0,0.087648]
[1725407437135,0.45908781,57714.0,57713.0,0.087648]
[1725407437850,0.45108781,57714.0,57713.0,0.086648]
[1725407438038,0.46008781,57714.0,57713.0,0.087648]
[1725407439355,0.37344081,57714.0,57713.0,0.087648]
[1725407442551,0.46008781,57714.0,57713.0,0.001]
[1725407442750,0.78038181,57714.0,57713.0,0.001]
[1725407442959,0.69373481,57714.0,57713.0,0.001]
[1725407445464,1.9863378,57714.0,57713.0,0.001]
[1725407445855,0.259962,57709.0,57708.0,0.00025995]
[1725407446052,0.173324,57704.0,57703.0,0.06880253]
[1725407446255,0.904524,57704.0,57703.0,0.06880253]
[1725407446548,0.817462,57704.0,57699.0,0.0004]
[1725407446750,0.774536,57700.0,57693.0,0.10355697]
[1725407446955,0.222938,57699.0,57688.0,0.004]
[1725407447151,0.822898,57699.0,57693.0,0.00025995]
[1725407447559,1.422898,57699.0,57693.0,0.00025995]
[1725407448150,1.336229,57699.0,57693.0,0.00025995]
[1725407448355,0.687477,57694.0,57693.0,0.00025995]
[1725407450065,0.447477,57694.0,57693.0,0.00025995]
[1725407450262,0.687477,57694.0,57693.0,0.00025995]
[1725407451561,0.687477,57694.0,57693.0,0.00425995]
[1725407452261,0.687477,57694.0,57693.0,0.00025995]
[1725407452462,0.687477,57694.0,57693.0,0.00425995]
[1725407453360,0.6911474,57694.0,57693.0,0.00425995]
[1725407453556,0.3303474,57694.0,57693.0,0.00425995]
[1725407453757,0.3311474,57694.0,57693.0,0.00425995]
[1725407454760,0.327477,57694.0,57693.0,0.00425995]
[1725407455259,0.2408,57694.0,57693.0,0.09093795]
[1725407456868,0.327477,57694.0,57693.0,0.09093795]
[1725407457063,0.427477,57694.0,57693.0,0.09093795]
[1725407458964,0.427477,57694.0,57693.0,0.00425995]
[1725407460567,0.514154,57694.0,57693.0,0.00425995]
[1725407460767,0.562754,57694.0,57693.0,0.00425995]
[1725407461071,0.611954,57694.0,57693.0,0.00425995]
[1725407464067,1.333554,57694.0,57693.0,0.00425995]
[1725407464267,1.284354,57694.0,57693.0,0.00425995]
[1725407467867,1.197677,57694.0,57693.0,0.00425995]
[1725407468676,1.284354,57694.0,57693.0,0.00425995]
[1725407470067,1.149077,57694.0,57693.0,0.09093795]
[1725407470266,0.909077,57694.0,57693.0,0.09093795]
[1725407472475,1.149077,57694.0,57693.0,0.09093795]
[1725407472876,1.149077,57694.0,57693.0,0.00425995]
[1725407473273,0.427477,57694.0,57693.0,0.09093795]
[1725407473472,0.788277,57694.0,57693.0,0.09093795]
[1725407473874,0.427477,57694.0,57693.0,0.09093795]
[1725407478080,0.427477,57694.0,57693.0,0.00425995]
[1725407481187,0.514154,57694.0,57693.0,0.00425995]
[1725407481384,0.427477,57694.0,57693.0,0.00425995]
[1725407481777,0.560154,57694.0,57693.0,0.00425995]
[1725407482084,0.473477,57694.0,57693.0,0.00425995]
[1725407483582,0.560154,57694.0,57693.0,0.00425995]
[1725407484176,0.560154,57694.0,57689.0,0.06932405]
[1725407484177,1.7468,57694.0,57687.0,0.06932405]
[1725407484389,0.17338,57685.0,57684.0,0.06932405]
[1725407484587,0.086693,57683.0,57682.0,0.15571236]
[1725407484787,0.086693,57683.0,57682.0,0.08638831]
[1725407485478,0.086693,57683.0,57682.0,0.08138831]
[1725407485878,0.0008,57685.0,57684.0,0.086692]
[1725407486078,0.0008,57685.0,57684.0,0.326692]
[1725407486583,0.0008,57685.0,57684.0,0.653572]
[1725407486976,0.0008,57685.0,57684.0,1.62567165]
[1725407487984,0.00105995,57688.0,57687.0,0.086687]
[1725407488286,0.68854595,57688.0,57687.0,0.086687]
[1725407488481,0.68854595,57688.0,57684.0,0.0468]
[1725407488482,0.086689,57686.0,57684.0,0.133491]
[1725407488682,0.086689,57686.0,57684.0,0.134291]
[1725407488885,0.086689,57686.0,57685.0,0.08669]
[1725407490588,0.00025995,57688.0,57687.0,0.086687]
[1725407492288,0.08694595,57688.0,57687.0,0.086687]
[1725407492587,0.00025995,57688.0,57687.0,0.086687]
[1725407493395,0.36105995,57688.0,57687.0,0.086687]
[1725407493889,0.086689,57686.0,57684.0,0.134291]
[1725407494185,0.08669,57685.0,57684.0,0.134291]
[1725407497290,0.36105995,57688.0,57687.0,0.086687]
[1725407497590,0.36105995,57688.0,57687.0,0.087087]
[1725407498793,0.44774595,57688.0,57687.0,0.087087]
[1725407499492,0.49774595,57688.0,57687.0,0.087087]
[1725407499695,0.44774595,57688.0,57687.0,0.087087]
[1725407499989,0.49774595,57688.0,57687.0,0.087087]
[1725407500192,0.73774595,57688.0,57687.0,0.087087]
[1725407500691,0.73774595,57688.0,57687.0,0.0004]
[1725407502297,0.73774595,57688.0,57687.0,0.06967892]
[1725407502794,0.73774595,57688.0,57687.0,0.0004]
[1725407502994,0.73774595,57688.0,57687.0,0.0696804]
[1725407503197,0.73774595,57688.0,57687.0,0.0004]
[1725407503591,0.73774595,57688.0,57687.0,0.06968256]
[1725407504193,0.73774595,57688.0,57687.0,0.0004]
[1725407504603,0.73774595,57688.0,57687.0,0.06968256]
[1725407504995,0.73774595,57688.0,57687.0,0.0004]
[1725407505196,0.73774595,57688.0,57687.0,0.06968256]
[1725407505600,0.68774595,57688.0,57687.0,0.06968256]
[1725407505809,0.73774595,57688.0,57687.0,0.06968256]
[1725407506099,0.68774595,57688.0,57687.0,0.0004]
[1725407507497,0.69145155,57688.0,57687.0,0.0004]
[1725407508003,0.74145155,57688.0,57687.0,0.0004]
[1725407508195,0.69145155,57688.0,57687.0,0.0004]
[1725407508997,0.73145155,57688.0,57687.0,0.0004]
[1725407509607,1.14482355,57688.0,57687.0,0.0004]
[1725407509806,2.31066355,57688.0,57687.0,0.0004]
[1725407510606,0.26007,57685.0,57684.0,0.0008]
[1725407510796,0.61007,57685.0,57684.0,0.0008]
[1725407511103,1.73015,57685.0,57684.0,0.0008]
[1725407513513,1.64346,57685.0,57684.0,0.0008]
[1725407513699,1.04346,57685.0,57684.0,0.0008]
[1725407513893,0.43669,57685.0,57684.0,0.0008]
[1725407516003,0.32669,57685.0,57684.0,0.0008]
[1725407516202,0.08669,57685.0,57684.0,0.0008]
[1725407517107,0.32669,57685.0,57684.0,0.0008]
[1725407517803,0.32669,57685.0,57676.0,8e-08]
[1725407517804,0.260106,57677.0,57676.0,8e-08]
[1725407518005,0.17342,57672.0,57671.0,0.10383628]
[1725407518305,0.4808,57672.0,57660.0,0.12114233]
[1725407518604,0.24,57661.0,57660.0,0.12114233]
[1725407519401,0.326726,57661.0,57660.0,0.12114233]
[1725407522002,0.326726,57661.0,57660.0,0.05183918]
[1725407522403,0.326726,57661.0,57659.0,0.05183918]
[1725407524314,0.326726,57661.0,57657.0,0.0517929]
[1725407524807,0.326726,57661.0,57657.0,0.1385249]
[1725407525011,0.086728,57660.0,57657.0,0.1385249]
[1725407525710,0.3608,57665.0,57661.0,0.086726]
[1725407525910,0.086723,57664.0,57662.0,0.181125]
[1725407526212,0.086723,57664.0,57663.0,0.0457]
[1725407526706,0.086723,57664.0,57663.0,0.132423]
[1725407527400,0.326723,57664.0,57663.0,0.132423]
[1725407528612,0.24,57664.0,57663.0,0.132423]
[1725407529004,0.086725,57662.0,57657.0,0.00356942]
[1725407529205,0.24,57658.0,57655.0,0.08699495]
[1725407529405,0.31,57658.0,57655.0,0.08699495]
[1725407530909,0.086734,57656.0,57655.0,0.08699495]
[1725407531320,0.086734,57656.0,57655.0,0.00025995]
[1725407531817,0.156734,57656.0,57655.0,0.00025995]
[1725407532112,0.086734,57656.0,57655.0,0.00025995]
[1725407532316,0.326734,57656.0,57655.0,0.00025995]
[1725407533109,0.436734,57656.0,57655.0,0.00025995]
[1725407533919,0.44043986,57656.0,57655.0,0.00025995]
[1725407534119,0.326734,57656.0,57655.0,0.00025995]
[1725407534416,0.3608,57660.0,57655.0,0.00025995]
[1725407534417,0.3608,57660.0,57655.0,0.52057995]
[1725407534613,0.3608,57660.0,57659.0,0.086729]
[1725407535106,0.00025995,57666.0,57664.0,0.086722]
[1725407535314,0.00025995,57666.0,57665.0,0.32672]
[1725407535514,0.00025995,57666.0,57665.0,0.84696]
[1725407535708,0.00025995,57666.0,57665.0,1.20776]
[1725407535917,0.24025995,57666.0,57661.0,0.086725]
[1725407536108,0.24025995,57666.0,57659.0,0.3608]
[1725407536916,0.24,57662.0,57659.0,0.3608]
[1725407537107,0.24,57662.0,57658.0,0.08673]
[1725407537813,0.326725,57662.0,57658.0,0.08673]
[1725407538013,0.086731,57659.0,57655.0,0.08699395]
[1725407539221,0.086731,57659.0,57655.0,0.32699395]
[1725407539613,0.447522,57664.0,57658.0,0.24]
[1725407540421,0.447522,57664.0,57655.0,0.24025995]
[1725407540622,0.086724,57663.0,57658.0,0.08673]
[1725407540827,0.326725,57662.0,57658.0,0.08673]
[1725407541622,0.086725,57662.0,57656.0,0.24]
[1725407542921,0.086734,57656.0,57655.0,0.00025995]
[1725407547822,0.326734,57656.0,57655.0,0.00025995]
[1725407552230,0.376734,57656.0,57655.0,0.00025995]
[1725407552732,0.533468,57656.0,57655.0,0.00025995]
[1725407552935,0.413468,57656.0,57655.0,0.00025995]
[1725407554131,0.523468,57656.0,57655.0,0.00025995]
[1725407554333,0.524268,57656.0,57655.0,0.00025995]
[1725407554534,0.327534,57656.0,57655.0,0.00025995]
[1725407556443,0.0008,57656.0,57655.0,0.08699495]
[1725407556942,0.0008,57656.0,57655.0,0.18319495]
[1725407561048,0.377534,57656.0,57655.0,0.08699495]
[1725407561360,0.377534,57656.0,57655.0,0.00025995]
[1725407561762,0.464268,57656.0,57655.0,0.00025995]
[1725407564352,0.327534,57656.0,57655.0,0.00025995]
[1725407564763,0.33110088,57656.0,57655.0,0.00025995]
[1725407565062,0.09110088,57656.0,57655.0,0.00025995]
[1725407565558,0.14110088,57656.0,57655.0,0.00025995]
[1725407565961,0.38110088,57656.0,57655.0,0.00025995]
[1725407567262,0.33110088,57656.0,57655.0,0.00025995]
[1725407568066,0.09110088,57656.0,57655.0,0.00025995]
[1725407570864,0.09110088,57656.0,57655.0,0.08699495]
[1725407571956,0.0008,57656.0,57655.0,0.08699495]
[1725407572169,0.05254459,57656.0,57655.0,0.18309495]
[1725407572351,0.0008,57656.0,57655.0,0.18309495]
[1725407572864,0.05256395,57656.0,57655.0,0.18309495]
[1725407573061,0.0008,57656.0,57655.0,0.18309495]
[1725407573261,0.05256395,57656.0,57655.0,0.18309495]
[1725407573759,0.05256395,57656.0,57655.0,0.08699495]
[1725407573760,0.10256395,57656.0,57655.0,0.08699495]
[1725407573966,0.18929795,57656.0,57655.0,0.08699495]
[1725407574267,0.137534,57656.0,57655.0,0.08699495]
[1725407576157,0.137534,57656.0,57655.0,0.00025995]
[1725407577663,0.137534,57656.0,57655.0,0.06962831]
[1725407578056,0.137534,57656.0,57655.0,0.00025995]
[1725407578260,0.137534,57656.0,57655.0,0.06962651]
[1725407578458,0.224268,57656.0,57655.0,0.06962651]
[1725407579158,0.224268,57656.0,57655.0,0.12165609]
[1725407579767,1.431322,57656.0,57655.0,0.00994709]
[1725407579960,0.086752,57644.0,57643.0,0.008]
[1725407580157,0.086753,57643.0,57642.0,0.10405634]
[1725407580362,0.087553,57643.0,57642.0,0.10405634]
[1725407580670,0.0008,57644.0,57642.0,0.10405634]
[1725407581362,0.2408,57644.0,57642.0,0.10405634]
[1725407581565,0.0008,57644.0,57642.0,0.34405634]
[1725407581974,0.0008,57644.0,57642.0,0.10405634]
[1725407582464,0.0008,57644.0,57643.0,0.086753]
[1725407587962,0.0508,57644.0,57643.0,0.086753]
[1725407588163,0.0508,57644.0,57639.0,0.08662485]
[1725407588366,0.24,57640.0,57639.0,0.08662485]
[1725407588567,0.2408,57640.0,57639.0,0.08662485]
[1725407588769,0.2408,57640.0,57639.0,0.17338385]
[1725407589071,0.2408,57640.0,57639.0,0.08662485]
[1725407589365,0.6016,57640.0,57637.0,0.0001747]
[1725407589567,0.087561,57638.0,57637.0,0.0001747]
[1725407589868,0.327561,57638.0,57637.0,0.0001747]
[1725407590465,1.498041,57638.0,57637.0,0.0001747]
[1725407591469,0.90177047,57638.0,57637.0,0.0001747]
[1725407591767,0.086762,57637.0,57628.0,0.08662485]
[1725407591971,0.774348,57629.0,57628.0,0.08662485]
[1725407592171,0.50995731,57629.0,57628.0,0.08662485]
[1725407592372,0.397574,57629.0,57628.0,0.08662485]
[1725407592668,0.3008,57629.0,57628.0,0.08662485]
[1725407592869,0.3008,57629.0,57628.0,0.17340085]
[1725407593067,0.3008,57629.0,57628.0,0.08662485]
[1725407593266,0.387574,57629.0,57628.0,0.08662485]
[1725407593871,0.387574,57629.0,57620.0,0.086788]
[1725407594167,0.2408,57621.0,57620.0,0.086788]
[1725407594569,0.0008,57621.0,57620.0,0.086788]
[1725407598677,0.0008,57621.0,57620.0,0.607428]
[1725407598976,0.0008,57621.0,57620.0,1.207428]
[1725407600075,0.004,57629.0,57628.0,0.086776]
[1725407600380,0.2435689,57630.0,57621.0,0.0478]
[1725407601079,0.2435689,57630.0,57629.0,0.086774]
[1725407601677,0.2935689,57630.0,57629.0,0.086774]
[1725407603680,0.2935689,57630.0,57621.0,0.0478]
[1725407603880,0.24,57623.0,57622.0,0.086785]
[1725407605580,0.24,57626.0,57625.0,0.08678]
[1725407605773,0.3608,57632.0,57625.0,0.24]
[1725407605973,0.00026019,57634.0,57633.0,0.086768]
[1725407606174,0.00026019,57634.0,57633.0,0.326768]
[1725407606571,0.00026019,57634.0,57633.0,1.447288]
[1725407610288,0.00026019,57634.0,57633.0,0.086768]
[1725407610477,0.24026019,57634.0,57633.0,0.086768]
[1725407613283,0.00026019,57634.0,57633.0,0.086768]
[1725407615896,0.00026019,57634.0,57633.0,0.326768]
[1725407618284,0.00026019,57634.0,57633.0,1.447288]
[1725407618485,0.00026019,57634.0,57633.0,0.847288]
[1725407619577,0.00026019,57634.0,57633.0,1.534056]
[1725407619884,1.9e-07,57634.0,57633.0,1.62936805]
[1725407620704,1.9e-07,57634.0,57633.0,0.934056]
[1725407620884,1.9e-07,57634.0,57633.0,1.534056]
[1725407621191,1.9e-07,57634.0,57633.0,0.413536]
[1725407621382,1.9e-07,57634.0,57633.0,1.534056]
[1725407622695,1.9e-07,57634.0,57633.0,1.54272332]
[1725407625587,1.9e-07,57634.0,57633.0,1.447288]
[1725407625790,1.9e-07,57634.0,57633.0,0.086768]
[1725407626906,1.9e-07,57634.0,57633.0,0.326768]
[1725407632303,1.9e-07,57634.0,57633.0,1.5427492]
[1725407632803,1.9e-07,57634.0,57633.0,1.4559812]
[1725407633001,1.9e-07,57634.0,57633.0,0.8559812]
[1725407633389,1.9e-07,57634.0,57633.0,0.847288]
[1725407633690,1.9e-07,57634.0,57633.0,0.086768]
[1725407634394,0.09730019,57634.0,57633.0,0.086768]
[1725407637106,1.9e-07,57634.0,57633.0,0.086768]
[1725407637408,1.9e-07,57634.0,57633.0,0.45897404]
[1725407639705,1.9e-07,57634.0,57633.0,0.45896868]
[1725407641110,1.9e-07,57634.0,57633.0,0.21896868]
[1725407641306,0.24000019,57634.0,57633.0,0.086768]
[1725407641609,0.29000019,57634.0,57633.0,0.086768]
[1725407641910,0.24000019,57634.0,57633.0,0.086768]
[1725407642514,0.24000019,57634.0,57630.0,0.08662295]
[1725407642515,0.32676719,57634.0,57630.0,0.08662295]
[1725407642805,0.2404,57631.0,57630.0,0.08662295]
[1725407643206,0.3404,57631.0,57630.0,0.08662295]
[1725407643514,1.692731,57631.0,57630.0,0.08662295]
[1725407644914,2.41788683,57631.0,57630.0,0.08662295]
[1725407645999,0.086773,57630.0,57629.0,0.06930673]
[1725407646201,0.197173,57630.0,57629.0,0.06930673]
[1725407646401,0.717733,57630.0,57629.0,0.06930673]
[1725407647511,0.086774,57629.0,57628.0,0.00025999]
[1725407647711,0.197174,57629.0,57628.0,0.00025999]
[1725407648111,0.137174,57629.0,57628.0,0.00025999]
[1725407661419,0.657734,57629.0,57628.0,0.00025999]
[1725407661626,1.257734,57629.0,57628.0,0.00025999]
[1725407663420,0.086786,57622.0,57620.0,0.0008]
[1725407663628,1.48264,57621.0,57620.0,0.0008]
[1725407663828,1.63954,57621.0,57620.0,0.0008]
[1725407664022,2.23954,57621.0,57620.0,0.0008]
[1725407664728,2.413112,57621.0,57620.0,0.0008]
[1725407667326,2.41667186,57621.0,57620.0,0.0008]
[1725407670919,2.36977186,57621.0,57620.0,0.0008]
[1725407674034,1.52977186,57621.0,57620.0,0.0008]
[1725407674332,1.76977186,57621.0,57620.0,0.0008]
[1725407674927,1.24913186,57621.0,57620.0,0.0008]
[1725407675431,1.31799261,57621.0,57620.0,0.0008]
[1725407676331,1.07799261,57621.0,57620.0,0.0008]
[1725407676642,1.16234586,57621.0,57620.0,0.0008]
[1725407676828,0.92234586,57621.0,57620.0,0.0008]
[1725407677132,1.16234586,57621.0,57620.0,0.0008]
[1725407678034,1.16234586,57621.0,57609.0,0.06922941]
[1725407678230,1.16234586,57621.0,57603.0,0.0971]
[1725407678231,0.687603,57610.0,57603.0,0.0971]
[1725407678434,0.927612,57604.0,57603.0,0.0971]
[1725407678625,0.817612,57604.0,57603.0,0.0971]
[1725407678933,0.817612,57604.0,57598.0,0.1038518]
[1725407678934,0.9708,57604.0,57598.0,0.1038518]
[1725407679126,0.9708,57604.0,57578.0,0.2487]
[1725407679127,0.6008,57599.0,57562.0,0.10316948]
[1725407679336,0.31212943,57599.0,57573.0,0.06922918]
[1725407679529,0.7216,57574.0,57570.0,0.06922918]
[1725407679729,0.7216,57574.0,57572.0,0.08686]
[1725407680031,0.7216,57574.0,57573.0,0.24]
[1725407680236,0.7216,57574.0,57571.0,0.06922918]
[1725407680531,0.9616,57574.0,57571.0,0.06922918]
[1725407680740,0.7216,57574.0,57572.0,0.0451]
[1725407680927,0.7216,57574.0,57572.0,0.131959]
[1725407681229,0.9616,57574.0,57571.0,0.07070918]
[1725407681426,0.7216,57574.0,57572.0,0.0451]
[1725407682231,0.7216,57574.0,57571.0,0.06922918]
[1725407682438,0.24,57572.0,57571.0,0.06922918]
[1725407683336,0.6008,57572.0,57564.0,0.24]
[1725407683531,0.3608,57565.0,57564.0,0.086872]
[1725407687238,0.3608,57565.0,57564.0,0.326872]
[1725407689146,0.3608,57565.0,57564.0,0.086872]
[1725407689441,0.086872,57564.0,57559.0,0.08688]
[1725407689645,0.3608,57560.0,57559.0,0.08688]
[1725407690034,0.3608,57560.0,57546.0,0.086898]
[1725407690035,0.3608,57555.0,57535.0,0.086915]
[1725407690241,0.7216,57537.0,57536.0,0.326955]
[1725407690444,0.7216,57537.0,57536.0,0.926955]
[1725407690744,0.7216,57537.0,57536.0,0.326955]
[1725407690936,0.7216,57537.0,57536.0,0.086955]
[1725407691245,0.7216,57537.0,57525.0,0.07910448]
[1725407691246,0.086915,57536.0,57525.0,0.07910448]
[1725407691439,0.9616,57537.0,57511.0,0.02]
[1725407691440,0.68773,57526.0,57511.0,0.02]
[1725407691639,0.3608,57506.0,57491.0,0.28205521]
[1725407691938,0.087001,57479.0,57478.0,0.095621]
[1725407692136,0.447801,57479.0,57478.0,0.002825]
[1725407692445,0.4565216,57479.0,57478.0,0.002825]
[1725407692652,1.24352,57479.0,57478.0,0.002825]
[1725407692853,2.08352,57479.0,57456.0,0.02]
[1725407693150,0.3608,57465.0,57456.0,0.02]
[1725407693450,0.24,57457.0,57456.0,0.02]
[1725407693637,0.3608,57465.0,57456.0,0.02]
[1725407693838,0.24,57457.0,57456.0,0.02]
[1725407694042,0.3608,57458.0,57456.0,0.02]
[1725407694350,0.52212,57457.0,57434.0,0.3608]
[1725407694533,0.6608,57437.0,57429.0,0.3608]
[1725407694853,0.3608,57440.0,57430.0,0.3608]
[1725407695032,0.004,57448.0,57430.0,0.3608]
[1725407695236,0.00026113,57439.0,57437.0,0.6608]
[1725407695547,0.0047,57459.0,57450.0,0.087045]
[1725407695732,0.3608,57470.0,57449.0,0.3608]
[1725407695931,0.3608,57477.0,57466.0,0.3608]
[1725407696139,0.3608,57477.0,57461.0,0.3608]
[1725407696140,0.3608,57470.0,57461.0,0.3608]
[1725407696344,0.3608,57470.0,57453.0,0.3608]
[1725407696740,0.00026113,57467.0,57457.0,0.3]
[1725407696939,0.00026113,57467.0,57464.0,0.3608]
[1725407697235,1.3e-07,57467.0,57466.0,0.3608]
[1725407697644,1.3e-07,57467.0,57466.0,1.78284]
[1725407697846,0.0087,57495.0,57487.0,0.086989]
[1725407698046,0.3608,57510.0,57494.0,0.3608]
[1725407698245,0.3608,57510.0,57500.0,0.3608]
[1725407698743,0.3608,57510.0,57496.0,0.386974]
[1725407698948,0.3608,57510.0,57499.0,0.00026086]
[1725407699152,0.3608,57510.0,57501.0,0.3608]
[1725407699445,0.3608,57510.0,57499.0,0.00026086]
[1725407699648,0.6608,57500.0,57499.0,0.00026086]
[1725407700544,0.3608,57500.0,57499.0,0.00026086]
[1725407700942,0.3608,57505.0,57499.0,0.00026086]
[1725407701438,0.36106086,57511.0,57499.0,0.36106086]
[1725407701745,0.3,57509.0,57499.0,0.36106086]
[1725407701950,0.36106086,57511.0,57499.0,0.36106086]
[1725407703045,0.6608,57500.0,57499.0,0.00026086]
[1725407703242,0.9608,57500.0,57471.0,0.004]
[1725407703443,0.9608,57500.0,57467.0,0.3608]
[1725407703444,0.6608,57478.0,57467.0,0.3608]
[1725407703749,0.3,57478.0,57467.0,0.3608]
[1725407704053,0.3608,57485.0,57472.0,0.3608]
[1725407704238,0.3608,57485.0,57478.0,0.3608]
[1725407704443,0.00026086,57484.0,57478.0,0.3608]
[1725407704843,0.3,57479.0,57473.0,0.00026086]
[1725407705039,0.00026086,57484.0,57473.0,0.00026086]
[1725407705245,0.3,57475.0,57473.0,0.00026086]
[1725407705444,0.3,57480.0,57473.0,0.00026086]
[1725407705648,0.6608,57475.0,57473.0,0.00026086]
[1725407706254,0.6608,57480.0,57473.0,0.00026086]
[1725407706447,0.66106086,57480.0,57473.0,0.00026086]
[1725407706954,0.36106086,57480.0,57473.0,0.00026086]
[1725407707159,0.36106086,57480.0,57473.0,0.36106086]
[1725407707346,0.0087,57499.0,57488.0,0.086987]
[1725407707544,0.3,57489.0,57479.0,0.3608]
[1725407707940,0.3,57493.0,57481.0,0.086998]
[1725407708144,0.3,57498.0,57479.0,0.6608]
[1725407708339,0.3,57498.0,57492.0,0.086981]
[1725407708540,0.00026086,57494.0,57492.0,0.086981]
[1725407708941,0.3608,57504.0,57492.0,0.086981]
[1725407709144,0.3,57500.0,57492.0,0.086981]
[1725407709856,0.3608,57504.0,57492.0,0.086981]
[1725407710043,0.36106086,57504.0,57489.0,0.6608]
[1725407710965,0.00026086,57504.0,57502.0,0.3608]
[1725407711449,0.00126086,57504.0,57502.0,0.447765]
[1725407711850,0.00126086,57504.0,57503.0,0.52172]
[1725407712345,0.00126086,57504.0,57503.0,1.42172]
[1725407713153,0.00026086,57504.0,57503.0,1.42172]
[1725407713357,0.00126086,57504.0,57503.0,1.42172]
[1725407714056,0.00126086,57504.0,57503.0,1.12172]
[1725407714257,0.00126086,57504.0,57503.0,0.52172]
[1725407714652,0.00126086,57504.0,57502.0,0.37128]
[1725407714854,0.00126086,57504.0,57497.0,0.36106086]
[1725407714855,0.00026086,57504.0,57503.0,0.3748]
[1725407715359,0.00026086,57504.0,57503.0,1.48252]
[1725407715559,0.00026086,57504.0,57503.0,1.49052]
[1725407716047,0.00026086,57504.0,57503.0,0.3658]
[1725407716452,0.00026086,57504.0,57503.0,0.88752]
[1725407717160,0.00026086,57504.0,57503.0,0.3658]
[1725407717957,0.00026086,57504.0,57503.0,0.3618]
[1725407718164,0.00026086,57504.0,57503.0,1.48352]
[1725407718349,0.00026086,57504.0,57503.0,1.48752]
[1725407719062,0.00026086,57504.0,57503.0,1.48252]
[1725407720366,0.6608,57519.0,57503.0,1.61500663]
[1725407720564,0.6608,57519.0,57512.0,0.05160908]
[1725407720769,0.6608,57519.0,57514.0,0.3608]
[1725407721160,0.3608,57527.0,57517.0,0.05165467]
[1725407721361,0.3,57529.0,57518.0,0.05165467]
[1725407721362,0.00026086,57528.0,57518.0,0.05165467]
[1725407721563,0.00026086,57528.0,57519.0,0.13859467]
[1725407721764,0.00026086,57528.0,57519.0,0.05165467]
[1725407721956,0.00026086,57528.0,57522.0,0.3]
[1725407722155,0.00026086,57528.0,57526.0,0.386929]
[1725407722568,0.00026086,57528.0,57527.0,0.52148]
[1725407723061,0.00026086,57528.0,57527.0,1.48228]
[1725407723261,0.3648,57546.0,57527.0,1.6147073]
[1725407723458,0.3648,57546.0,57538.0,0.3]
[1725407723459,0.00088,57546.0,57538.0,0.3]
[1725407723672,0.3228,57550.0,57538.0,0.3]
[1725407723867,0.3228,57550.0,57542.0,0.3]
[1725407724066,0.3608,57554.0,57549.0,0.086894]
[1725407724267,0.00017114,57557.0,57552.0,0.086889]
[1725407724861,0.00017114,57557.0,57548.0,0.3608]
[1725407725062,0.0008,57549.0,57548.0,0.3608]
[1725407725263,0.00017114,57557.0,57548.0,0.3608]
[1725407725464,0.00017114,57557.0,57548.0,0.3616]
[1725407725670,0.00017114,57557.0,57551.0,0.3]
[1725407726074,0.00017114,57557.0,57556.0,0.3608]
[1725407726275,0.00017114,57557.0,57549.0,0.087894]
[1725407726461,0.00017114,57557.0,57556.0,0.3608]
[1725407726665,0.13286,57573.0,57561.0,0.086876]
[1725407726876,0.08686,57573.0,57565.0,0.35]
[1725407727569,0.3608,57575.0,57565.0,0.35]
[1725407727779,0.086855,57576.0,57565.0,0.35]
[1725407727974,0.3608,57575.0,57564.0,0.00026061]
[1725407728274,0.086869,57567.0,57564.0,0.00026061]
[1725407728662,0.08687,57566.0,57564.0,0.00026061]
[1725407729076,0.3608,57565.0,57564.0,0.00026061]
[1725407730069,0.9608,57565.0,57561.0,0.00056614]
[1725407730271,0.086895,57549.0,57548.0,0.0008]
[1725407730570,0.847695,57549.0,57548.0,0.0008]